[Event "Championnat du monde jeunes U10"]
[Date "2024.11.23"]
[White "Chen, Pin-Jui"]
[Black "Larionov, Serghei"]
[WhiteElo "1505"]
[BlackElo "1720"]
[Round "8.45"]
[Result "1/2-1/2"]
[TimeControl "5400+30"]

1. e4 {[%clk 1:30:58]} 1... e5 {[%clk 1:30:59]} 2. Nf3 {[%clk 1:31:21]} 2... Nc6
{[%clk 1:31:22]} 3. Bb5 {[%clk 1:31:43]} 3... a6 {[%clk 1:31:39]} 4. Ba4 {[%clk
1:32:08]} 4... Bc5 {[%clk 1:31:56]} 5. O-O {[%clk 1:32:29]} 5... Nge7 {[%clk
1:32:05]} 6. Nxe5 {[%clk 1:32:53]} 6... Nxe5 {[%clk 1:30:01]} 7. d4 {[%clk
1:33:14]} 7... b5 {[%clk 1:27:41]} 8. Bb3 {[%clk 1:33:35]} 8... Bb6 {[%clk
1:25:36]} 9. dxe5 {[%clk 1:33:59]} 9... Nc6 {[%clk 1:24:52]} 10. Nc3 {[%clk
1:33:16]} 10... O-O {[%clk 1:23:01]} 11. Kh1 {[%clk 1:29:49]} 11... Nxe5 {[%clk
1:19:16]} 12. f4 {[%clk 1:23:18]} 12... Nc6 {[%clk 1:12:30]} 13. Qh5 {[%clk
1:13:37]} 13... Nd4 {[%clk 1:05:59]} 14. f5 {[%clk 1:10:33]} 14... Nxb3 {[%clk
1:06:16]} 15. axb3 {[%clk 1:10:57]} 15... b4 {[%clk 1:00:02]} 16. Nd5 {[%clk
1:11:01]} 16... f6 {[%clk 0:59:31]} 17. Rf3 {[%clk 1:09:11]} 17... Bb7 {[%clk
0:57:08]} 18. Rh3 {[%clk 1:07:28]} 18... Bxd5 {[%clk 0:55:35]} 19. Qxh7+ {[%clk
1:07:45]} 19... Kf7 {[%clk 0:55:53]} 20. Qg6+ {[%clk 1:06:38]} 20... Kg8 {[%clk
0:52:44]} 21. exd5 {[%clk 1:04:57]} 21... Qe8 {[%clk 0:53:05]} 22. Qh7+ {[%clk
1:04:06]} 22... Kf7 {[%clk 0:53:23]} 23. Bh6 {[%clk 1:04:16]} 23... Rg8 {[%clk
0:53:21]} 24. Qg6+ {[%clk 1:04:34]} 24... Kf8 {[%clk 0:53:41]} 25. Qxf6+ {[%clk
1:04:54]} 25... Qf7 {[%clk 0:54:07]} 26. Qxf7+ {[%clk 1:02:55]} 26... Kxf7
{[%clk 0:54:32]} 27. Bg5 {[%clk 1:03:13]} 27... Rge8 {[%clk 0:54:23]} 28. Rd3
{[%clk 1:00:21]} 28... Re5 {[%clk 0:53:03]} 29. g4 {[%clk 0:59:15]} 29... Rae8
{[%clk 0:53:03]} 30. Rad1 {[%clk 0:55:54]} 30... Re1+ {[%clk 0:53:00]} 31. Rxe1
{[%clk 0:55:16]} 31... Rxe1+ {[%clk 0:53:25]} 32. Kg2 {[%clk 0:55:31]} 32...
Re2+ {[%clk 0:53:49]} 33. Kg3 {[%clk 0:52:42]} 33... Rxc2 {[%clk 0:53:44]} 34.
Rd2 {[%clk 0:52:50]} 34... Rxd2 {[%clk 0:53:44]} 35. Bxd2 {[%clk 0:53:13]} 35...
a5 {[%clk 0:54:10]} 36. Kf4 {[%clk 0:51:37]} 36... Bd4 {[%clk 0:54:22]} 37. Bc1
{[%clk 0:50:29]} 37... d6 {[%clk 0:54:15]} 38. h4 {[%clk 0:50:05]} 38... Bf2
{[%clk 0:53:58]} 39. h5 {[%clk 0:50:24]} 39... Bd4 {[%clk 0:54:01]} 40. g5
{[%clk 0:50:17]} 40... Be5+ {[%clk 0:53:32]} 41. Kg4 {[%clk 0:48:20]} 41... Bd4
{[%clk 0:53:19]} 42. h6 {[%clk 0:46:55]} 42... gxh6 {[%clk 0:52:10]} 43. gxh6
{[%clk 0:47:15]} 43... Bf6 {[%clk 0:52:13]} 44. Kh5 {[%clk 0:46:13]} 44... Be5
{[%clk 0:52:21]} 45. Kg4 {[%clk 0:45:34]} 45... Kf6 {[%clk 0:49:42]} 46. Bg5+
{[%clk 0:45:22]} 46... Kf7 {[%clk 0:50:08]} 47. Bd8 {[%clk 0:45:19]} 47... Bxb2
{[%clk 0:49:54]} 48. Bxc7 {[%clk 0:45:38]} 48... a4 {[%clk 0:48:22]} 49. bxa4
{[%clk 0:44:28]} 49... Be5 {[%clk 0:48:46]} 50. a5 {[%clk 0:42:17]} 50... b3
{[%clk 0:48:43]} 51. Bxd6 {[%clk 0:24:20]} 51... Bxd6 {[%clk 0:34:45]} 52. h7
{[%clk 0:23:03]} 52... Be5 {[%clk 0:35:10]} 53. h8=Q {[%clk 0:22:07]} 53... Bxh8
{[%clk 0:35:34]} 54. a6 {[%clk 0:22:29]} 54... b2 {[%clk 0:35:59]} 55. a7 {[%clk
0:22:56]} 55... b1=Q {[%clk 0:36:20]} 56. a8=Q Qe4+ {[%clk 0:36:40]} 57. Kg3
{[%clk 0:22:46]} 57... Qe3+ {[%clk 0:36:29]} 58. Kg4 {[%clk 0:21:17]} 58... Qe2+
{[%clk 0:36:44]} 59. Kh3 {[%clk 0:19:20]} 59... Qf3+ {[%clk 0:37:05]} 60. Kh2
{[%clk 0:19:31]} 60... Qf2+ {[%clk 0:34:23]} 61. Kh3 {[%clk 0:18:10]} 61... Qf3+
{[%clk 0:34:27]} 62. Kh2 {[%clk 0:18:30]} 62... Be5+ {[%clk 0:34:54]} 63. Kg1
{[%clk 0:18:54]} 63... Qd1+ {[%clk 0:32:10]} 64. Kf2 {[%clk 0:18:14]} 64... Bd4+
{[%clk 0:32:21]} 65. Kg3 {[%clk 0:16:56]} 65... Qd3+ {[%clk 0:32:39]} 66. Kg2
{[%clk 0:13:14]} 66... Qe2+ {[%clk 0:33:00]} 67. Kh3 {[%clk 0:12:54]} 67... Qf1+
{[%clk 0:29:21]} 68. Kg4 {[%clk 0:11:54]} 68... Qe2+ {[%clk 0:28:52]} 69. Kh3
{[%clk 0:11:33]} 69... Qf1+ {[%clk 0:26:10]} 70. Kg4 {[%clk 0:11:52]} 70... Qe2+
{[%clk 0:26:12]} 71. Kh3 {[%clk 0:11:09]} 71... Qh5+ {[%clk 0:28:20]} 72. Kg3
{[%clk 0:08:30]} 72... Be5+ {[%clk 0:28:32]} 73. Kf2 {[%clk 0:08:41]} 73...
Qxf5+ {[%clk 0:28:38]} 74. Ke2 {[%clk 0:08:18]} 74... Qe4+ {[%clk 0:27:50]} 75.
Kd2 {[%clk 0:08:28]} 75... Qd4+ {[%clk 0:28:01]} 76. Kc2 {[%clk 0:08:23]} 76...
Qc3+ {[%clk 0:28:24]} 77. Kd1 {[%clk 0:08:48]} 77... Qd3+ {[%clk 0:27:36]} 78.
Kc1 {[%clk 0:08:58]} 78... Bf4+ {[%clk 0:27:54]} 79. Kb2 Qd2+ {[%clk 0:27:53]}
80. Kb3 {[%clk 0:09:03]} 80... Qd3+ {[%clk 0:28:11]} 81. Kb2 {[%clk 0:08:53]}
81... Be5+ {[%clk 0:28:17]} 82. Kc1 {[%clk 0:08:46]} 82... Qc4+ {[%clk 0:28:24]}
83. Kd1 {[%clk 0:07:41]} 83... Qb3+ {[%clk 0:28:45]} 84. Ke2 {[%clk 0:07:55]}
84... Qc4+ {[%clk 0:28:54]} 85. Kd1 {[%clk 0:08:11]} 85... Qd3+ {[%clk 0:27:58]}
86. Kc1 {[%clk 0:08:29]} 86... Qc3+ {[%clk 0:28:09]} 87. Kd1 {[%clk 0:08:54]}
87... Qd3+ {[%clk 0:28:34]} 88. Kc1 {[%clk 0:09:18]} 88... Qc3+ {[%clk 0:29:00]}
89. Kd1 {[%clk 0:09:42]} 89... Bd6 1/2-1/2

[Variant "Standard"]
[Site "Europe Echecs"]

[Event "Championnat du monde jeunes U10"]
[Date "2024.11.23"]
[White "Burba, Mikita"]
[Black "Chkhartishvili, Lazare"]
[WhiteElo "1528"]
[BlackElo "1836"]
[Round "8.46"]
[Result "1/2-1/2"]
[TimeControl "5400+30"]

1. e4 {[%clk 1:30:58]} 1... c5 {[%clk 1:30:50]} 2. Nf3 {[%clk 1:31:22]} 2... Nc6
{[%clk 1:31:08]} 3. d4 {[%clk 1:31:45]} 3... cxd4 {[%clk 1:31:21]} 4. Nxd4
{[%clk 1:32:08]} 4... Nf6 {[%clk 1:31:47]} 5. Nc3 {[%clk 1:32:25]} 5... e5
{[%clk 1:31:50]} 6. Ndb5 {[%clk 1:32:46]} 6... d6 {[%clk 1:32:11]} 7. Bg5 {[%clk
1:33:04]} 7... a6 {[%clk 1:32:33]} 8. Na3 {[%clk 1:33:25]} 8... b5 {[%clk
1:32:56]} 9. Bxf6 {[%clk 1:32:02]} 9... gxf6 {[%clk 1:33:19]} 10. Nd5 {[%clk
1:32:22]} 10... Bg7 {[%clk 1:33:41]} 11. c3 {[%clk 1:31:51]} 11... f5 {[%clk
1:32:39]} 12. exf5 {[%clk 1:32:06]} 12... Bxf5 {[%clk 1:32:54]} 13. Nc2 {[%clk
1:32:24]} 13... Rb8 {[%clk 1:22:19]} 14. Nce3 {[%clk 1:29:17]} 14... Be6 {[%clk
1:15:27]} 15. g4 {[%clk 1:14:35]} 15... Ne7 {[%clk 0:53:27]} 16. Nxe7 {[%clk
0:52:47]} 16... Qxe7 {[%clk 0:53:48]} 17. Bg2 {[%clk 0:52:15]} 17... Qd7 {[%clk
0:46:34]} 18. O-O {[%clk 0:45:20]} 18... Bh6 {[%clk 0:30:44]} 19. h3 {[%clk
0:22:15]} 19... Bg5 {[%clk 0:21:13]} 20. Nd5 {[%clk 0:19:08]} 20... O-O {[%clk
0:08:09]} 21. Kh1 {[%clk 0:17:47]} 21... Kh8 {[%clk 0:07:34]} 22. Ne3 {[%clk
0:08:26]} 22... Rg8 {[%clk 0:05:04]} 23. Qf3 {[%clk 0:07:53]} 23... a5 {[%clk
0:03:24]} 24. Rg1 {[%clk 0:07:20]} 24... b4 {[%clk 0:02:32]} 25. cxb4 {[%clk
0:04:42]} 25... Rxb4 {[%clk 0:01:04]} 26. b3 {[%clk 0:04:33]} 26... Rf4 {[%clk
0:01:00]} 27. Qe2 {[%clk 0:04:33]} 27... Bh4 {[%clk 0:01:01]} 28. f3 {[%clk
0:03:40]} 28... d5 {[%clk 0:00:56]} 29. Rad1 {[%clk 0:03:44]} 29... Qb7 {[%clk
0:00:49]} 30. Nxd5 {[%clk 0:03:24]} 30... Bxd5 {[%clk 0:00:35]} 31. Qxe5+ {[%clk
0:03:47]} 31... Rf6 {[%clk 0:01:04]} 32. Rxd5 {[%clk 0:03:23]} 32... Qc6 {[%clk
0:00:55]} 33. f4 {[%clk 0:03:14]} 33... Qe6 {[%clk 0:00:40]} 34. Rxa5 {[%clk
0:02:00]} 34... Qxe5 {[%clk 0:00:41]} 35. fxe5 {[%clk 0:02:22]} 35... Rf2 {[%clk
0:01:03]} 36. a4 {[%clk 0:01:35]} 36... Bg3 {[%clk 0:01:07]} 37. Rb1 {[%clk
0:01:00]} 37... Re8 {[%clk 0:01:13]} 38. Rc5 {[%clk 0:00:49]} 38... Rd8 {[%clk
0:01:14]} 39. b4 {[%clk 0:00:40]} 39... Rdd2 {[%clk 0:01:19]} 40. Rg1 {[%clk
0:00:57]} 40... Ra2 {[%clk 0:01:22]} 41. a5 {[%clk 0:01:09]} 41... Rfb2 {[%clk
0:01:33]} 42. Rb5 {[%clk 0:00:59]} 42... Kg7 {[%clk 0:01:52]} 43. Rb7 {[%clk
0:00:48]} 43... Bxe5 {[%clk 0:02:09]} 44. Rb5 {[%clk 0:00:38]} 44... Bd4 {[%clk
0:01:25]} 45. Rd1 {[%clk 0:00:44]} 45... Be3 {[%clk 0:00:59]} 46. Re1 {[%clk
0:00:42]} 46... Bd4 {[%clk 0:01:11]} 47. Rg5+ {[%clk 0:00:56]} 47... Kf8 {[%clk
0:01:03]} 48. Rd1 {[%clk 0:01:13]} 48... Ba7 {[%clk 0:00:39]} 49. b5 {[%clk
0:00:53]} 49... Rxg2 {[%clk 0:00:38]} 50. b6 {[%clk 0:01:16]} 50... Rh2+ {[%clk
0:00:52]} 51. Kg1 {[%clk 0:01:40]} 51... Rhg2+ {[%clk 0:00:55]} 1/2-1/2

[Variant "Standard"]
[Site "Europe Echecs"]

[Event "Championnat du monde jeunes U10"]
[Date "2024.11.23"]
[White "Kalinichenko, German Yu"]
[Black "Kovacs, Balazs"]
[WhiteElo "1621"]
[BlackElo "1800"]
[Round "8.47"]
[Result "0-1"]
[TimeControl "5400+30"]

1. e4 {[%clk 1:30:58]} 1... c5 {[%clk 1:30:55]} 2. Nf3 {[%clk 1:31:19]} 2... Nc6
{[%clk 1:31:17]} 3. d4 {[%clk 1:31:45]} 3... cxd4 {[%clk 1:31:44]} 4. Nxd4
{[%clk 1:32:11]} 4... Qb6 {[%clk 1:32:10]} 5. Nb3 {[%clk 1:32:33]} 5... Nf6
{[%clk 1:32:24]} 6. Nc3 {[%clk 1:32:37]} 6... e6 {[%clk 1:32:45]} 7. Be3 {[%clk
1:32:32]} 7... Qc7 {[%clk 1:31:51]} 8. Qe2 {[%clk 1:31:31]} 8... a6 {[%clk
1:31:36]} 9. O-O-O {[%clk 1:31:43]} 9... Be7 {[%clk 1:23:59]} 10. Kb1 {[%clk
1:30:39]} 10... b5 {[%clk 1:20:09]} 11. g4 {[%clk 1:29:41]} 11... d6 {[%clk
1:13:20]} 12. h4 {[%clk 1:29:10]} 12... Nd7 {[%clk 1:02:31]} 13. f4 {[%clk
1:28:45]} 13... Nb6 {[%clk 1:00:34]} 14. Bg2 {[%clk 1:28:00]} 14... Rb8 {[%clk
0:52:50]} 15. f5 {[%clk 1:26:01]} 15... b4 {[%clk 0:37:41]} 16. fxe6 {[%clk
1:21:33]} 16... fxe6 {[%clk 0:36:25]} 17. Nd5 {[%clk 1:19:05]} 17... exd5 {[%clk
0:36:30]} 18. exd5 {[%clk 1:19:08]} 18... Ne5 {[%clk 0:35:11]} 19. Bxb6 {[%clk
1:19:02]} 19... Qxb6 {[%clk 0:32:48]} 20. Nd4 {[%clk 1:18:59]} 20... Bxg4 {[%clk
0:31:47]} 21. Bf3 {[%clk 1:19:25]} 21... Nxf3 {[%clk 0:30:26]} 22. Nxf3 {[%clk
1:19:42]} 22... O-O {[%clk 0:19:58]} 23. Rdf1 {[%clk 1:18:44]} 23... Bxf3 {[%clk
0:20:04]} 24. Rxf3 {[%clk 1:18:53]} 24... Rxf3 {[%clk 0:20:23]} 25. Qxf3 {[%clk
1:19:18]} 25... Rf8 {[%clk 0:20:37]} 26. Qg4 {[%clk 1:19:31]} 26... Bf6 {[%clk
0:20:04]} 27. Rd1 {[%clk 1:18:28]} 27... a5 {[%clk 0:16:28]} 28. h5 {[%clk
1:18:07]} 28... Qe3 {[%clk 0:12:43]} 29. h6 {[%clk 1:18:01]} 29... Qe5 {[%clk
0:11:36]} 30. c3 {[%clk 1:18:03]} 30... bxc3 {[%clk 0:09:45]} 31. hxg7 {[%clk
1:16:48]} 31... c2+ {[%clk 0:10:06]} 32. Kxc2 {[%clk 1:17:15]} 32... Qxb2+
{[%clk 0:10:29]} 33. Kd3 {[%clk 1:17:42]} 33... Qc3+ {[%clk 0:10:44]} 34. Ke2
{[%clk 1:18:05]} 34... Qe5+ {[%clk 0:09:11]} 35. Kf1 {[%clk 1:18:11]} 35...
Bxg7+ {[%clk 0:09:10]} 36. Kg2 {[%clk 1:18:25]} 36... Rf5 {[%clk 0:06:47]} 37.
Qc4 {[%clk 1:16:48]} 37... Qb2+ {[%clk 0:05:57]} 38. Kh1 {[%clk 1:15:41]} 38...
Rh5+ {[%clk 0:06:12]} 39. Kg1 {[%clk 1:15:24]} 39... Qh2+ {[%clk 0:06:28]} 40.
Kf1 {[%clk 1:15:49]} 40... Rf5+ {[%clk 0:06:52]} 0-1

[Variant "Standard"]
[Site "Europe Echecs"]

[Event "Championnat du monde jeunes U10"]
[Date "2024.11.23"]
[White "Golya, David"]
[Black "Neuschild, Marius"]
[WhiteElo "1672"]
[BlackElo "1786"]
[Round "8.48"]
[Result "0-1"]
[TimeControl "5400+30"]

1. e4 {[%clk 1:30:59]} 1... e5 2. Nf3 {[%clk 1:31:23]} 2... Nc6 {[%clk 1:31:22]}
3. Bc4 {[%clk 1:31:51]} 3... Bc5 {[%clk 1:31:45]} 4. O-O {[%clk 1:31:59]} 4...
Nf6 {[%clk 1:32:11]} 5. d3 {[%clk 1:32:19]} 5... d6 {[%clk 1:32:34]} 6. h3
{[%clk 1:32:45]} 6... a6 {[%clk 1:32:25]} 7. c3 {[%clk 1:32:58]} 7... Ba7 {[%clk
1:32:39]} 8. Bb3 {[%clk 1:26:20]} 8... h6 {[%clk 1:33:02]} 9. Nbd2 {[%clk
1:25:40]} 9... g5 {[%clk 1:33:07]} 10. Nc4 {[%clk 1:26:04]} 10... g4 {[%clk
1:30:52]} 11. hxg4 {[%clk 1:25:57]} 11... Bxg4 {[%clk 1:27:44]} 12. Be3 {[%clk
1:25:59]} 12... Qe7 {[%clk 1:23:57]} 13. Bxa7 {[%clk 1:25:05]} 13... Nxa7 {[%clk
1:24:11]} 14. Ne3 {[%clk 1:23:10]} 14... O-O-O {[%clk 1:23:13]} 15. Nxg4 {[%clk
1:16:19]} 15... Nxg4 {[%clk 1:23:41]} 16. g3 {[%clk 1:15:15]} 16... Rdg8 {[%clk
1:18:32]} 17. Qe2 {[%clk 1:10:54]} 17... h5 {[%clk 1:15:30]} 18. Nh4 {[%clk
1:05:55]} 18... Nc6 {[%clk 1:05:46]} 19. Rad1 {[%clk 0:56:33]} 19... Rh7 {[%clk
0:53:54]} 20. Qf3 {[%clk 0:51:22]} 20... Nh6 {[%clk 0:37:58]} 21. Nf5 {[%clk
0:27:29]} 21... Qf6 {[%clk 0:36:58]} 22. Qxh5 {[%clk 0:25:48]} 22... Qh8 {[%clk
0:23:04]} 23. Nxh6 {[%clk 0:20:24]} 23... Rxh6 {[%clk 0:23:33]} 24. Qf5+ {[%clk
0:19:21]} 24... Kb8 {[%clk 0:23:47]} 25. Kg2 {[%clk 0:19:18]} 25... Ne7 {[%clk
0:21:16]} 26. Qd7 {[%clk 0:16:54]} 26... Rh2+ {[%clk 0:15:07]} 27. Kf3 {[%clk
0:12:50]} 27... Qh5+ {[%clk 0:14:15]} 28. g4 {[%clk 0:12:36]} 28... Qh3+ {[%clk
0:08:05]} 29. Ke2 {[%clk 0:12:54]} 29... Ng6 {[%clk 0:07:32]} 30. Kd2 {[%clk
0:11:39]} 30... Nf4 {[%clk 0:06:17]} 31. Bc2 {[%clk 0:10:21]} 31... Qf3 {[%clk
0:03:38]} 32. g5 {[%clk 0:06:24]} 32... Rxf2+ {[%clk 0:03:22]} 33. Rxf2 {[%clk
0:06:40]} 33... Qxf2+ {[%clk 0:03:51]} 34. Kc1 {[%clk 0:06:55]} 34... Rh8 {[%clk
0:02:41]} 35. Kb1 {[%clk 0:05:38]} 35... Rh2 {[%clk 0:01:52]} 36. Qa4 {[%clk
0:05:59]} 36... Ng2 {[%clk 0:00:53]} 37. Qb3 {[%clk 0:03:05]} 37... Ne3 {[%clk
0:01:07]} 38. Rc1 {[%clk 0:03:26]} 38... Rg2 {[%clk 0:00:47]} 39. d4 {[%clk
0:02:27]} 39... Rxg5 {[%clk 0:00:43]} 40. Bd3 {[%clk 0:02:33]} 40... Ka7 {[%clk
0:00:44]} 41. Bc4 {[%clk 0:02:11]} 41... f6 {[%clk 0:00:43]} 42. Be6 {[%clk
0:01:34]} 42... Kb8 {[%clk 0:00:37]} 43. Bd7 {[%clk 0:01:05]} 43... Rg2 {[%clk
0:00:43]} 44. Bc6 {[%clk 0:01:06]} 44... b6 {[%clk 0:00:45]} 45. a3 {[%clk
0:00:41]} 45... Nc4 {[%clk 0:00:35]} 46. Bd5 {[%clk 0:00:35]} 46... Nd2+ {[%clk
0:00:53]} 0-1

[Variant "Standard"]
[Site "Europe Echecs"]

[Event "Championnat du monde jeunes U10"]
[Date "2024.11.23"]
[White "Grimm, Jakob"]
[Black "Zhou, Martin"]
[WhiteElo "1646"]
[BlackElo "1776"]
[Round "8.1"]
[Result "1/2-1/2"]
[TimeControl "5400+30"]

1. e4 {[%clk 1:31:00]} 1... c5 {[%clk 1:30:56]} 2. Nf3 {[%clk 1:31:25]} 2... e6
{[%clk 1:31:20]} 3. d4 {[%clk 1:31:52]} 3... cxd4 {[%clk 1:31:45]} 4. Nxd4
{[%clk 1:32:22]} 4... a6 {[%clk 1:32:07]} 5. Nc3 {[%clk 1:32:08]} 5... Qc7
{[%clk 1:32:32]} 6. g3 {[%clk 1:32:30]} 6... Nf6 {[%clk 1:32:56]} 7. Bg2 {[%clk
1:32:53]} 7... Be7 {[%clk 1:32:53]} 8. O-O {[%clk 1:33:12]} 8... O-O {[%clk
1:33:18]} 9. Re1 {[%clk 1:30:10]} 9... d6 {[%clk 1:33:41]} 10. Bg5 {[%clk
1:29:23]} 10... Nbd7 {[%clk 1:33:21]} 11. Qd2 {[%clk 1:23:44]} 11... h6 {[%clk
1:23:00]} 12. Be3 {[%clk 1:22:10]} 12... Ne5 {[%clk 1:13:24]} 13. Qe2 {[%clk
1:17:15]} 13... Rb8 {[%clk 1:09:55]} 14. Nf3 {[%clk 1:13:53]} 14... Nc4 {[%clk
1:08:35]} 15. b3 {[%clk 1:13:43]} 15... Nxe3 {[%clk 1:08:19]} 16. Qxe3 {[%clk
1:13:56]} 16... b5 {[%clk 1:08:26]} 17. Rac1 {[%clk 1:13:19]} 17... Bb7 {[%clk
1:08:33]} 18. Nd2 {[%clk 1:13:11]} 18... Ng4 {[%clk 1:07:33]} 19. Qf3 {[%clk
1:10:55]} 19... Bg5 {[%clk 1:06:48]} 20. Rcd1 {[%clk 1:08:53]} 20... Ne5 {[%clk
1:07:07]} 21. Qe2 {[%clk 1:09:03]} 21... Qxc3 {[%clk 1:06:40]} 22. f4 {[%clk
1:09:25]} 22... Qxc2 {[%clk 0:58:10]} 23. fxg5 {[%clk 1:05:46]} 23... hxg5
{[%clk 0:54:40]} 24. Qh5 {[%clk 1:04:16]} 24... g4 {[%clk 0:54:39]} 25. h3
{[%clk 1:03:05]} 25... gxh3 {[%clk 0:51:31]} 26. Bxh3 {[%clk 1:03:17]} 26...
Qxa2 {[%clk 0:46:47]} 27. Kg2 {[%clk 1:03:09]} 27... Qc2 {[%clk 0:43:58]} 28.
Qh4 {[%clk 0:52:57]} 28... d5 {[%clk 0:42:01]} 29. Rh1 {[%clk 0:52:04]} 29...
dxe4 {[%clk 0:41:48]} 30. Qh7+ {[%clk 0:50:54]} 30... Kxh7 {[%clk 0:41:55]} 31.
Bf5+ {[%clk 0:49:50]} 31... Kg8 {[%clk 0:42:14]} 32. Bh7+ {[%clk 0:50:04]} 32...
Kh8 {[%clk 0:42:36]} 33. Bg6+ {[%clk 0:50:05]} 33... Kg8 {[%clk 0:42:49]} 34.
Bh7+ {[%clk 0:50:31]} 1/2-1/2

[Variant "Standard"]
[Site "Europe Echecs"]

[Event "Championnat du monde jeunes U10"]
[Date "2024.11.23"]
[White "Munoz Padilla, Andres"]
[Black "Montaigu Dupont, Arthur"]
[WhiteElo "1604"]
[BlackElo "1767"]
[Round "8.2"]
[Result "1/2-1/2"]
[TimeControl "5400+30"]

1. e4 {[%clk 1:30:47]} 1... c5 {[%clk 1:30:57]} 2. Nf3 {[%clk 1:31:04]} 2... e6
{[%clk 1:31:24]} 3. d4 {[%clk 1:31:04]} 3... cxd4 {[%clk 1:31:50]} 4. Nxd4
{[%clk 1:30:31]} 4... Nc6 {[%clk 1:32:15]} 5. Nc3 {[%clk 1:30:13]} 5... Qc7
{[%clk 1:32:40]} 6. Ncb5 {[%clk 1:30:18]} 6... Qb8 {[%clk 1:32:45]} 7. Bd3
{[%clk 1:29:18]} 7... a6 {[%clk 1:32:57]} 8. Nxc6 {[%clk 1:28:51]} 8... bxc6
{[%clk 1:33:20]} 9. Nc3 {[%clk 1:29:10]} 9... d5 {[%clk 1:33:30]} 10. O-O {[%clk
1:28:19]} 10... Nf6 {[%clk 1:33:31]} 11. Qe2 {[%clk 1:25:45]} 11... Be7 {[%clk
1:31:32]} 12. b3 {[%clk 1:24:21]} 12... O-O {[%clk 1:28:54]} 13. Bb2 {[%clk
1:22:45]} 13... Bd6 {[%clk 1:20:29]} 14. Na4 {[%clk 1:14:34]} 14... Bxh2+ {[%clk
1:02:46]} 15. Kh1 {[%clk 1:14:39]} 15... Be5 {[%clk 1:03:07]} 16. c3 {[%clk
1:01:01]} 16... Nxe4 {[%clk 0:52:37]} 17. Bxe4 {[%clk 0:57:16]} 17... dxe4
{[%clk 0:52:54]} 18. Qxe4 {[%clk 0:57:38]} 18... f5 {[%clk 0:53:20]} 19. Qxc6
{[%clk 0:50:51]} 19... Kh8 {[%clk 0:49:33]} 20. Rfe1 {[%clk 0:36:06]} 20... Ra7
{[%clk 0:36:28]} 21. Ba3 {[%clk 0:27:27]} 21... Rd8 {[%clk 0:23:47]} 22. Rad1
{[%clk 0:15:52]} 22... Rad7 {[%clk 0:19:19]} 23. Rxd7 {[%clk 0:14:38]} 23...
Bxd7 {[%clk 0:18:15]} 24. Qxa6 {[%clk 0:12:16]} 24... Bxa4 {[%clk 0:18:37]} 25.
Qxa4 {[%clk 0:10:57]} 25... Bxc3 {[%clk 0:19:02]} 26. Rc1 {[%clk 0:11:16]} 26...
h6 {[%clk 0:16:58]} 27. Qc4 {[%clk 0:08:31]} 27... Qe5 {[%clk 0:11:24]} 28. f4
{[%clk 0:07:27]} 28... Qa5 {[%clk 0:09:40]} 29. Be7 {[%clk 0:06:25]} 29... Re8
{[%clk 0:08:27]} 30. Qxc3 {[%clk 0:06:27]} 30... Qxc3 {[%clk 0:08:51]} 31. Rxc3
{[%clk 0:06:53]} 31... Rxe7 {[%clk 0:09:16]} 32. b4 {[%clk 0:07:17]} 32... g5
{[%clk 0:07:24]} 33. g3 {[%clk 0:06:39]} 33... Kg7 {[%clk 0:07:22]} 34. b5
{[%clk 0:07:04]} 34... Kf7 {[%clk 0:04:56]} 35. b6 {[%clk 0:07:23]} 35... Re8
{[%clk 0:04:24]} 36. Rc7+ {[%clk 0:07:28]} 36... Kf6 {[%clk 0:04:18]} 37. a4
{[%clk 0:07:20]} 37... e5 {[%clk 0:04:36]} 38. fxe5+ {[%clk 0:07:38]} 38... Kxe5
{[%clk 0:04:56]} 39. a5 {[%clk 0:07:08]} 39... Kd6 {[%clk 0:05:22]} 40. a6
{[%clk 0:07:33]} 40... Re1+ {[%clk 0:02:42]} 41. Kg2 {[%clk 0:07:58]} 41... Rb1
{[%clk 0:03:05]} 42. a7 {[%clk 0:08:18]} 42... Rxb6 {[%clk 0:03:18]} 43. a8=Q
{[%clk 0:08:42]} 43... Kxc7 {[%clk 0:03:43]} 44. Qa7+ {[%clk 0:09:00]} 44... Kc6
{[%clk 0:04:03]} 45. Qa4+ {[%clk 0:09:20]} 45... Rb5 {[%clk 0:04:30]} 46. Qc4+
{[%clk 0:09:37]} 46... Rc5 {[%clk 0:04:56]} 47. Qe6+ {[%clk 0:10:00]} 47... Kb5
{[%clk 0:05:22]} 48. Qxh6 {[%clk 0:10:21]} 48... f4 {[%clk 0:05:46]} 49. gxf4
{[%clk 0:10:41]} 49... gxf4 {[%clk 0:06:10]} 50. Qxf4 {[%clk 0:11:04]} 50... Kc6
{[%clk 0:06:34]} 51. Kf3 {[%clk 0:11:19]} 51... Kb5 {[%clk 0:06:54]} 52. Ke3
{[%clk 0:11:39]} 52... Rc3+ {[%clk 0:07:17]} 53. Kd2 {[%clk 0:12:04]} 53... Rc4
{[%clk 0:07:43]} 54. Qb8+ {[%clk 0:12:25]} 54... Kc5 {[%clk 0:08:06]} 55. Qa7+
{[%clk 0:12:06]} 55... Kd5 {[%clk 0:08:30]} 56. Qa5+ {[%clk 0:12:28]} 56... Rc5
{[%clk 0:08:57]} 57. Qd8+ {[%clk 0:12:52]} 57... Kc4 {[%clk 0:09:21]} 58. Qd3+
{[%clk 0:12:25]} 58... Kb4 {[%clk 0:09:46]} 59. Qd4+ {[%clk 0:12:42]} 59... Rc4
{[%clk 0:10:11]} 60. Qb6+ {[%clk 0:13:05]} 60... Ka4 {[%clk 0:10:24]} 61. Kd3
{[%clk 0:12:38]} 61... Rb4 {[%clk 0:10:38]} 62. Qc5 {[%clk 0:12:20]} 62... Rb3+
{[%clk 0:10:39]} 63. Kc4 {[%clk 0:12:42]} 63... Rc3+ {[%clk 0:10:56]} 1/2-1/2

[Variant "Standard"]
[Site "Europe Echecs"]